bitfinex/quotes_SOLUSD_20220212
["timestamp","ask_amount","ask_price","bid_price","bid_amount"]
[1644674469511,5.246,95.325,95.277,39.69938197]
[1644674469710,15.7495,95.32,95.278,0.25]
[1644674469915,5.246,95.319,95.278,0.25]
[1644674470111,5.496,95.319,95.278,0.25]
[1644674470315,5.496,95.319,95.242,2.38366791]
[1644674470516,2.38366791,95.318,95.241,5.246]
[1644674470713,5.497,95.317,95.242,0.25]
[1644674471111,2.38366791,95.316,95.242,0.25]
[1644674471314,5.497,95.315,95.242,0.25]
[1644674471712,15.7504,95.31,95.24,0.25]
[1644674471912,46.26887422,95.308,95.24,0.25]
[1644674472313,0.25,95.307,95.24,0.25]
[1644674472521,52.5102,95.32,95.241,5.247]
[1644674472714,5.497,95.319,95.241,5.247]
[1644674472913,0.25,95.319,95.241,5.247]
[1644674473113,15.7512,95.31,95.241,5.247]
[1644674473312,41.8107588,95.308,95.241,5.247]
[1644674473715,5.497,95.307,95.241,5.247]
[1644674473918,0.25,95.307,95.241,5.247]
[1644674474116,15.7519,95.3,95.241,5.247]
[1644674474817,0.25,95.299,95.241,5.247]
[1644674475017,5.248,95.298,95.22,15.14]
[1644674475217,15.7533,95.29,95.221,0.25]
[1644674475417,5.499,95.289,95.206,2.38366791]
[1644674475616,0.25,95.289,95.207,5.499]
[1644674476019,0.25,95.289,95.208,46.52010326]
[1644674476216,15.7552,95.28,95.209,0.25]
[1644674476617,0.25,95.279,95.209,2.63366791]
[1644674477318,8.15,95.279,95.209,2.63366791]
[1644674477919,15.7562,95.27,95.209,2.63366791]
[1644674478121,41.88392384,95.269,95.209,2.63366791]
[1644674478322,41.88392384,95.269,95.21,5.249]
[1644674478721,41.88392384,95.269,95.211,0.25]
[1644674479020,41.88392384,95.269,95.212,5.249]
[1644674479221,41.88392384,95.269,95.213,0.25]
[1644674479422,41.88392384,95.269,95.211,0.25]
[1644674480422,41.88392384,95.269,95.21,0.25]
[1644674481924,41.88392384,95.269,95.209,2.38366791]
[1644674482124,15.7562,95.27,95.209,2.38366791]
[1644674482421,0.25,95.279,95.211,2.38366791]
[1644674482627,0.25,95.279,95.212,5.249]
[1644674483022,0.25,95.279,95.213,2.38366791]
[1644674483223,34.77956784,95.285,95.213,2.63366791]
[1644674483624,34.77956784,95.285,95.214,2.38366791]
[1644674483829,34.77956784,95.285,95.215,0.25]
[1644674484749,5.249,95.284,95.216,2.38366791]
[1644674484922,0.25,95.285,95.216,2.38366791]
[1644674485125,0.25,95.283,95.217,0.25]
[1644674485326,5.249,95.289,95.217,0.25]
[1644674485524,5.249,95.289,95.218,2.38366791]
[1644674485727,5.249,95.289,95.219,0.25]
[1644674485925,36.29300026,95.288,95.217,0.25]
[1644674486126,5.249,95.287,95.217,2.63366791]
[1644674486326,36.29300026,95.288,95.218,5.249]
[1644674486527,5.249,95.287,95.217,2.63366791]
[1644674486728,0.25,95.287,95.218,5.249]
[1644674487127,0.25,95.287,95.219,0.25]
[1644674487528,36.29300026,95.288,95.219,0.25]
[1644674487738,5.249,95.287,95.219,0.25]
[1644674487930,5.249,95.287,95.22,2.38366791]
[1644674488130,36.29300026,95.288,95.22,2.38366791]
[1644674488332,36.29300026,95.288,95.221,0.25]
[1644674488733,36.29300026,95.288,95.223,48.19352875]
[1644674489136,5.249,95.289,95.224,2.63366791]
[1644674489333,5.249,95.298,95.224,2.63366791]
[1644674489533,23.1336,95.299,95.225,27.10626791]
[1644674489733,0.25,95.297,95.226,0.25]
[1644674490635,0.25,95.297,95.227,2.38366791]
[1644674490836,5.248,95.296,95.228,0.25]
[1644674491140,5.248,95.32,95.231,44.0]
[1644674491341,5.248,95.341,95.232,5.497]
[1644674491536,4.43987899,95.342,95.232,17.86538619]
[1644674491737,4.43987899,95.342,95.232,52.58161934]
[1644674491938,35.09292932,95.341,95.233,29.91888586]
[1644674492135,35.09292932,95.341,95.234,5.247]
[1644674492355,35.09292932,95.341,95.234,25.04640139]
[1644674492553,35.09292932,95.341,95.24,15.7456]
[1644674492757,4.43987899,95.335,95.25,15.14]
[1644674492953,15.7465,95.33,95.25,15.14]
[1644674493155,15.7465,95.33,95.251,0.25]
[1644674493554,5.247,95.334,95.252,2.38366791]
[1644674493754,4.43987899,95.338,95.253,0.25]
[1644674493955,4.43987899,95.338,95.253,30.1623]
[1644674494154,0.25,95.337,95.253,30.1623]
[1644674494355,5.246,95.336,95.253,24.9163]
[1644674494755,0.25,95.335,95.253,24.9163]
[1644674495155,0.25,95.335,95.254,5.246]
[1644674495358,4.43987899,95.337,95.255,0.25]
[1644674495558,4.43987899,95.337,95.257,38.69436017]
[1644674495757,5.496,95.336,95.27,15.14]
[1644674496258,5.496,95.336,95.271,0.25]
[1644674497056,4.43987899,95.334,95.271,0.25]
[1644674497256,5.246,95.333,95.271,0.25]
[1644674498258,0.25,95.332,95.271,0.25]
[1644674498658,5.246,95.331,95.271,0.25]
[1644674499560,4.43987899,95.334,95.271,0.25]
[1644674499760,4.43987899,95.334,95.272,2.38366791]
[1644674500062,4.43987899,95.345,95.272,7.62966791]
[1644674500260,4.43987899,95.345,95.273,128.1773]
[1644674500569,4.43987899,95.345,95.275,40.0240107]
[1644674500570,40.38151122,95.345,95.275,40.0240107]
[1644674500761,40.38151122,95.345,95.29,15.14]
[1644674500960,4.43987899,95.345,95.29,15.14]
[1644674501162,4.43987899,95.345,95.291,0.25]
[1644674501361,4.43987899,95.346,95.291,0.25]
[1644674501963,44.29883894,95.345,95.291,41.65655569]
[1644674502161,44.54883894,95.345,95.291,41.40655569]
[1644674502360,44.54883894,95.345,95.292,0.25]
[1644674502561,5.245,95.344,95.292,0.25]
[1644674502761,4.43987899,95.342,95.291,41.40655569]
[1644674503063,5.245,95.341,95.291,41.40655569]
[1644674503262,0.25,95.341,95.291,41.40655569]
[1644674503863,15.7449,95.34,95.26,30.883]
[1644674504268,0.25,95.339,95.26,30.883]
[1644674504462,5.496,95.339,95.26,30.883]
[1644674504661,5.496,95.339,95.274,0.25]
[1644674504861,0.25,95.339,95.274,36.05074885]
[1644674505567,4.43987899,95.35,95.274,36.05074885]
[1644674505766,4.43987899,95.35,95.28,15.14]
[1644674505969,4.43987899,95.359,95.281,5.245]
[1644674506165,4.43987899,95.359,95.281,5.495]
[1644674506365,4.43987899,95.359,95.282,2.38366791]
[1644674506768,4.43987899,95.359,95.283,0.25]
[1644674506967,4.43987899,95.363,95.29,15.7393]
[1644674507167,4.43987899,95.363,95.3,15.14]
[1644674507573,4.43987899,95.363,95.301,5.494]
[1644674507774,4.43987899,95.363,95.301,7.87766791]
[1644674508077,4.43987899,95.373,95.302,43.14576234]
[1644674508274,49.73296333,95.373,95.303,0.25]
[1644674508473,4.43987899,95.373,95.303,2.63366791]
[1644674508877,4.43987899,95.373,95.31,15.7359]
[1644674509178,4.43987899,95.379,95.311,2.38366791]
[1644674509375,4.43987899,95.379,95.311,7.87666791]
[1644674509775,4.43987899,95.379,95.312,2.38366791]
[1644674509977,5.244,95.378,95.311,0.25]
[1644674510177,4.43987899,95.377,95.311,0.25]
[1644674510476,4.43987899,95.377,95.312,5.244]
[1644674510677,0.25,95.376,95.312,5.244]
[1644674510874,0.25,95.376,95.313,0.25]
[1644674511278,5.244,95.375,95.313,0.25]
[1644674511682,0.25,95.374,95.31,15.14]
[1644674511880,5.244,95.373,95.29,15.14]
[1644674512080,23.595,95.372,95.282,5.244]
[1644674512278,5.245,95.371,95.265,23.5104]
[1644674512477,7.62866791,95.371,95.265,23.5104]
[1644674512679,0.25,95.37,95.265,23.5104]
[1644674512877,18.37376791,95.37,95.266,52.79790383]
[1644674513076,5.245,95.369,95.281,38.78886888]
[1644674513280,0.25,95.368,95.282,22.8472]
[1644674513589,42.13980392,95.366,95.282,22.8472]
[1644674513779,5.495,95.365,95.282,22.8472]
[1644674514585,15.7415,95.36,95.282,22.8472]
[1644674514782,5.495,95.359,95.282,22.8472]
[1644674514982,7.87866791,95.359,95.282,22.8472]
[1644674515382,2.38366791,95.358,95.282,0.25]
[1644674515586,5.245,95.357,95.282,0.25]
[1644674515885,40.56881953,95.349,95.281,38.78886888]
[1644674516284,0.25,95.348,95.264,22.5416]
[1644674516485,0.25,95.348,95.265,5.246]
[1644674516886,15.7462,95.34,95.265,5.246]
[1644674517085,15.7462,95.34,95.241,5.246]
[1644674517086,24.3062,95.34,95.241,5.246]
[1644674517284,30.52016791,95.339,95.241,48.04986107]
[1644674517485,25.27416791,95.339,95.242,5.247]
[1644674518509,5.247,95.338,95.242,5.247]
[1644674518704,0.25,95.337,95.242,5.247]
[1644674518904,45.79525297,95.319,95.242,5.247]
[1644674519310,0.25,95.318,95.243,0.25]
[1644674520011,15.7493,95.32,95.243,0.25]
[1644674520206,5.247,95.338,95.243,0.25]
[1644674520608,5.247,95.338,95.242,4.997]
[1644674520808,42.89640975,95.337,95.242,4.997]
[1644674521009,5.247,95.336,95.242,4.997]
[1644674521216,15.7475,95.33,95.242,4.997]
[1644674521408,5.247,95.329,95.242,4.997]
[1644674521809,48.14340975,95.337,95.242,4.997]
[1644674522209,0.25,95.336,95.243,0.25]
[1644674522410,5.247,95.335,95.243,0.25]
[1644674522812,15.7481,95.32,95.243,0.25]
[1644674523011,41.87806283,95.319,95.243,0.25]
[1644674524113,0.25,95.318,95.243,0.25]
[1644674524513,0.25,95.318,95.242,0.25]
[1644674525812,41.87806283,95.319,95.243,5.247]
[1644674526013,41.87806283,95.319,95.244,0.25]
[1644674526216,41.87806283,95.319,95.245,5.247]
[1644674526419,41.87806283,95.319,95.246,23.6194]
[1644674526615,41.87806283,95.319,95.247,5.247]
[1644674526815,41.87806283,95.319,95.248,0.25]
[1644674527014,41.87806283,95.319,95.25,15.14]
[1644674527217,47.12506283,95.319,95.251,5.497]
[1644674527515,47.12506283,95.319,95.251,0.25]
[1644674527716,0.25,95.318,95.251,0.25]
[1644674528317,0.25,95.318,95.25,15.14]
[1644674528517,5.247,95.317,95.25,15.14]
[1644674528819,0.25,95.316,95.25,15.14]
[1644674529015,5.247,95.315,95.25,15.14]
[1644674529217,0.25,95.314,95.25,15.14]
[1644674529416,5.247,95.313,95.25,15.14]
[1644674529618,5.247,95.313,95.251,0.25]
[1644674529819,5.247,95.318,95.251,0.25]
[1644674530020,41.87806283,95.319,95.251,0.25]
[1644674530219,47.12506283,95.319,95.25,15.14]
[1644674530618,0.25,95.318,95.25,15.14]
[1644674531019,15.7497,95.31,95.246,23.6194]
[1644674531219,0.25,95.309,95.23,15.14]
[1644674531425,0.25,95.309,95.205,32.96009967]
[1644674531426,5.497,95.309,95.22,15.14]
[1644674531617,5.497,95.309,95.224,0.25]
[1644674531817,0.25,95.309,95.221,0.25]
[1644674532017,5.248,95.308,95.221,0.25]
[1644674532218,0.25,95.307,95.221,44.89940324]
[1644674532518,5.248,95.306,95.221,44.89940324]
[1644674532721,15.7524,95.3,95.221,44.89940324]
[1644674532923,38.75896268,95.298,95.221,44.89940324]
[1644674534121,5.248,95.297,95.221,44.89940324]
[1644674534322,15.7536,95.29,95.221,44.89940324]
[1644674534520,5.249,95.289,95.221,44.89940324]
[1644674534723,5.499,95.289,95.221,44.89940324]
[1644674535423,15.7549,95.28,95.206,5.248]
[1644674535823,5.499,95.279,95.206,5.248]
[1644674536222,34.81186633,95.278,95.206,40.21731421]
[1644674536425,35.74688782,95.259,95.206,34.96931421]
[1644674536826,0.25,95.258,95.207,0.25]
[1644674537426,15.7561,95.28,95.207,0.25]
[1644674537828,5.499,95.279,95.207,0.25]
[1644674538229,5.499,95.279,95.207,23.9005]
[1644674538433,48.72803543,95.278,95.207,23.9005]
[1644674538637,5.249,95.277,95.207,23.9005]
[1644674538831,5.499,95.277,95.207,23.9005]
[1644674539730,15.7566,95.27,95.208,40.63702028]
[1644674539929,5.249,95.269,95.208,40.63702028]
[1644674540130,5.499,95.269,95.209,0.25]
[1644674544932,0.25,95.269,95.209,0.25]
[1644674546938,5.499,95.269,95.209,0.25]
[1644674548039,0.25,95.269,95.209,0.25]
[1644674550744,0.25,95.277,95.209,0.25]
[1644674551341,48.72803543,95.278,95.209,0.25]
[1644674551544,5.249,95.277,95.209,0.25]
[1644674551745,14.799,95.277,95.209,0.25]
[1644674552041,14.299,95.277,95.209,0.25]
[1644674552863,15.7563,95.27,95.209,5.499]
[1644674553065,15.7563,95.27,95.209,0.25]
[1644674553263,0.25,95.269,95.209,0.25]
[1644674554666,0.25,95.269,95.21,5.249]
[1644674554868,0.25,95.269,95.209,0.25]
[1644674555269,0.25,95.276,95.209,0.25]
[1644674555467,48.72803543,95.278,95.21,5.249]
[1644674555669,48.72803543,95.278,95.209,0.25]
[1644674555670,5.249,95.276,95.211,0.25]
[1644674555868,5.249,95.277,95.208,45.88602028]
[1644674556068,5.249,95.277,95.209,0.25]
[1644674556879,5.249,95.277,95.21,2.38366791]
[1644674557276,5.249,95.295,95.211,5.499]
[1644674557476,2.96762074,95.303,95.22,15.14]
[1644674557681,2.96762074,95.302,95.221,52.8289]
[1644674557874,2.96762074,95.308,95.221,55.46256791]
[1644674558075,34.90701507,95.307,95.221,55.46256791]
[1644674558275,5.34186526,95.306,95.222,2.38366791]
[1644674558476,5.34186526,95.306,95.224,37.26641408]
[1644674558875,5.34186526,95.306,95.23,15.7471]
[1644674559079,5.34186526,95.306,95.24,15.14]
[1644674559276,8.309486,95.306,95.242,38.23113571]
[1644674559475,5.34186526,95.306,95.242,38.23113571]
[1644674559680,5.34186526,95.306,95.243,0.25]
[1644674559879,2.96762074,95.304,95.243,0.25]
[1644674560077,5.34186526,95.306,95.243,0.25]
[1644674560078,2.96762074,95.303,95.243,0.25]
[1644674560277,1.48536658,95.279,95.243,0.25]
[1644674560481,1.48536658,95.278,95.243,0.25]
[1644674560679,1.48536658,95.278,95.244,5.248]
[1644674560879,1.48536658,95.279,95.244,5.248]
[1644674561078,1.48536658,95.276,95.245,0.25]
[1644674561278,1.48536658,95.276,95.246,5.247]
[1644674561478,1.48536658,95.277,95.246,5.247]
[1644674561679,1.48536658,95.275,95.247,0.25]
[1644674561880,1.48536658,95.275,95.248,5.248]
[1644674562082,1.48536658,95.276,95.248,5.248]
[1644674562282,1.48536658,95.281,95.248,5.248]
[1644674562483,1.48536658,95.282,95.242,38.23113571]
[1644674562678,1.48536658,95.281,95.243,5.248]
[1644674562879,1.48536658,95.283,95.243,5.248]
[1644674563079,48.76412485,95.281,95.243,5.248]
[1644674563281,1.48536658,95.284,95.243,5.248]
[1644674563681,1.73536658,95.283,95.243,5.248]
[1644674563880,1.48536658,95.276,95.243,5.248]
[1644674564081,1.48536658,95.275,95.243,5.248]
[1644674564280,1.48536658,95.276,95.243,5.248]
[1644674564480,46.59304003,95.278,95.243,5.248]
[1644674564682,0.25,95.275,95.242,34.94022527]
[1644674564882,1.48536658,95.276,95.223,5.248]
[1644674565081,46.59304003,95.278,95.222,23.1497]
[1644674565283,1.48536658,95.277,95.222,23.1497]
[1644674565482,1.48536658,95.276,95.222,23.1497]
[1644674565683,1.48536658,95.277,95.222,23.1497]
[1644674565882,1.48536658,95.277,95.222,28.3987]
[1644674566082,45.10767345,95.278,95.223,35.69403978]
[1644674566281,45.10767345,95.278,95.223,0.25]
[1644674566482,0.25,95.277,95.223,0.25]
[1644674566685,5.249,95.276,95.223,0.25]
[1644674567182,0.25,95.275,95.223,0.25]
[1644674567384,5.249,95.274,95.223,47.54943495]
[1644674567581,5.249,95.275,95.223,47.54943495]
[1644674567782,5.249,95.276,95.223,47.54943495]
[1644674567983,45.10767345,95.278,95.223,47.54943495]
[1644674568381,46.59304003,95.278,95.223,47.54943495]
[1644674568582,1.48536658,95.275,95.223,47.54943495]
[1644674569383,1.48536658,95.274,95.223,47.54943495]
[1644674569784,1.48536658,95.272,95.223,0.25]
[1644674570286,1.48536658,95.269,95.223,0.25]
[1644674570487,1.48536658,95.27,95.223,0.25]
[1644674570986,1.48536658,95.268,95.223,0.25]
[1644674571387,1.48536658,95.267,95.223,0.25]
[1644674571591,1.48536658,95.268,95.223,0.25]
[1644674571889,1.48536658,95.266,95.223,0.25]
[1644674572087,1.48536658,95.269,95.223,0.25]
[1644674572289,1.48536658,95.269,95.222,0.25]
[1644674572489,1.48536658,95.268,95.222,0.25]
[1644674572889,1.48536658,95.265,95.222,0.25]
[1644674573087,5.249,95.276,95.222,0.25]
[1644674573088,1.48536658,95.264,95.222,0.25]
[1644674573286,35.92497954,95.263,95.222,0.25]
[1644674575693,41.17397954,95.263,95.222,0.25]
[1644674576592,35.92497954,95.263,95.222,0.25]
[1644674577194,35.92497954,95.263,95.203,35.44688799]
[1644674577397,1.48536658,95.261,95.203,35.44688799]
[1644674577698,1.48536658,95.26,95.203,35.44688799]
[1644674578520,1.48536658,95.261,95.203,35.44688799]
[1644674578695,17.49356658,95.26,95.201,24.8593]
[1644674578897,1.48536658,95.252,95.177,5.249]
[1644674579098,1.48536658,95.252,95.174,5.25]
[1644674579099,9.97536658,95.252,95.174,5.25]
[1644674579296,1.48536658,95.246,95.161,5.251]
[1644674579496,1.48536658,95.245,95.162,17.17000685]
[1644674579697,46.88493393,95.243,95.163,62.21573022]
[1644674579899,46.88493393,95.243,95.163,67.46673022]
[1644674580199,15.762,95.24,95.164,17.42000685]
[1644674580396,15.762,95.24,95.165,5.251]
[1644674580599,46.88493393,95.243,95.165,5.251]
[1644674580901,1.48536658,95.248,95.166,17.42000685]
[1644674581103,1.48536658,95.25,95.17,15.14]
[1644674581299,1.48536658,95.25,95.171,5.501]
[1644674581700,1.48536658,95.251,95.172,17.17000685]
[1644674581898,1.48536658,95.25,95.173,5.251]
[1644674582099,1.48536658,95.25,95.173,5.501]
[1644674582297,1.48536658,95.251,95.173,5.501]
[1644674582497,6.73636658,95.251,95.174,40.55650685]
[1644674582701,6.73636658,95.251,95.175,0.25]
[1644674582898,1.48536658,95.249,95.175,17.42000685]
[1644674583097,5.251,95.251,95.175,17.42000685]
[1644674583098,1.48536658,95.248,95.175,17.42000685]
[1644674583298,5.251,95.251,95.176,17.17000685]
[1644674583299,1.48536658,95.243,95.176,17.17000685]
[1644674583699,1.48536658,95.241,95.178,42.26967733]
[1644674583897,1.48536658,95.24,95.179,5.251]
[1644674584098,1.48536658,95.244,95.179,22.67100685]
[1644674584400,1.48536658,95.246,95.179,22.67100685]
[1644674584600,1.48536658,95.247,95.18,17.17000685]
[1644674584800,1.48536658,95.248,95.181,0.25]
[1644674585001,1.48536658,95.249,95.181,17.42000685]
[1644674585402,1.48536658,95.249,95.182,17.17000685]
[1644674585802,1.48536658,95.249,95.183,17.42000685]
[1644674586203,1.48536658,95.251,95.184,22.42100685]
[1644674586406,1.48536658,95.261,95.185,24.5444]
[1644674586605,1.48536658,95.262,95.2,15.14]
[1644674586808,1.48536658,95.265,95.201,24.7944]
[1644674587009,1.48536658,95.265,95.202,44.53156356]
[1644674587202,1.48536658,95.265,95.203,0.25]
[1644674587403,1.48536658,95.265,95.21,15.7516]
[1644674587601,1.48536658,95.265,95.22,15.14]
[1644674587807,1.48536658,95.265,95.221,5.499]
[1644674588202,1.48536658,95.275,95.221,5.499]
[1644674588403,1.48536658,95.276,95.222,41.60286565]
[1644674588610,1.48536658,95.277,95.223,30.1954]
[1644674588802,1.48536658,95.278,95.23,15.7484]
[1644674589002,1.48536658,95.279,95.231,5.249]
[1644674589203,1.48536658,95.279,95.231,5.499]
[1644674589604,1.48536658,95.28,95.231,5.499]
[1644674590705,1.48536658,95.28,95.231,21.0917]
[1644674590906,5.57817456,95.307,95.241,32.0]
[1644674591104,15.7476,95.33,95.241,32.0]
[1644674591105,2.96762074,95.32,95.241,32.0]
[1644674591305,5.57817456,95.323,95.243,104.9]
[1644674591505,2.96762074,95.333,95.244,43.4241948]
[1644674591707,5.52108853,95.332,95.244,46.05786271]
[1644674591907,5.52108853,95.332,95.245,19.4901674]
[1644674592105,2.96762074,95.342,95.27,15.7407]
[1644674592306,2.96762074,95.348,95.28,15.14]
[1644674592605,5.51267044,95.347,95.282,48.3032064]
[1644674592807,23.0666,95.361,95.283,5.495]
[1644674592808,2.96762074,95.352,95.283,5.495]
[1644674593006,2.96762074,95.352,95.284,22.7861]
[1644674593205,0.25,95.351,95.285,5.495]
[1644674593405,5.51267044,95.35,95.285,5.495]
[1644674594007,0.25,95.351,95.285,5.495]
[1644674594205,8.21262074,95.36,95.285,5.495]
[1644674594411,5.5058641,95.359,95.286,2.38366791]
[1644674594606,15.14,95.44,95.286,2.38366791]
[1644674594607,2.96762074,95.369,95.3,15.14]
[1644674594808,2.96762074,95.38,95.302,104.9]
[1644674595006,2.96762074,95.383,95.32,15.7316]
[1644674595205,2.96762074,95.385,95.33,15.14]
[1644674595410,2.96762074,95.385,95.331,5.242]
[1644674595609,2.96762074,95.386,95.331,0.25]
[1644674595807,2.96762074,95.386,95.33,15.14]
[1644674596009,2.96762074,95.379,95.33,15.14]
[1644674596214,2.96762074,95.379,95.331,0.25]
[1644674596410,2.96762074,95.386,95.331,0.25]
[1644674596611,2.96762074,95.384,95.331,0.25]
[1644674596813,2.96762074,95.387,95.331,0.25]
[1644674597011,2.96762074,95.397,95.331,0.25]
[1644674597211,37.78225184,95.396,95.331,0.25]
[1644674598018,2.96762074,95.4,95.331,0.25]
[1644674598216,0.25,95.399,95.331,0.25]
[1644674599416,0.25,95.403,95.331,0.25]
[1644674599616,0.25,95.403,95.332,5.242]
[1644674599816,0.25,95.409,95.333,0.25]
[1644674600026,0.25,95.409,95.334,5.242]
[1644674600217,0.25,95.409,95.335,0.25]
[1644674600818,5.492,95.422,95.335,0.25]
[1644674601045,0.25,95.422,95.335,0.25]
[1644674601237,5.242,95.421,95.335,0.25]
[1644674601436,5.242,95.421,95.341,37.13230547]
[1644674601636,5.242,95.426,95.341,37.13230547]
[1644674601840,15.73,95.43,95.342,29.3467]
[1644674602035,15.73,95.43,95.342,31.73036791]
[1644674602235,5.241,95.429,95.343,2.38366791]
[1644674602437,5.241,95.429,95.344,5.241]
[1644674602636,5.241,95.429,95.344,5.491]
[1644674602836,0.25,95.428,95.344,5.491]
[1644674603047,5.241,95.427,95.345,2.38366791]
[1644674603239,15.73,95.43,95.35,15.7286]
[1644674603637,5.241,95.438,95.36,15.14]
[1644674603837,47.5157,95.439,95.361,0.25]
[1644674604037,47.5157,95.439,95.361,5.491]
[1644674604438,46.53138281,95.447,95.362,37.85339074]
[1644674604638,5.24,95.446,95.363,5.24]
[1644674604837,5.24,95.446,95.363,5.49]
[1644674605240,5.24,95.449,95.363,5.49]
[1644674605639,0.25,95.448,95.363,5.49]
[1644674605843,5.24,95.447,95.364,46.6276]
[1644674606141,42.08497937,95.446,95.364,46.6276]
[1644674606341,5.24,95.445,95.365,0.25]
[1644674606744,0.25,95.444,95.37,15.7252]
[1644674606944,5.24,95.443,95.37,30.8652]
[1644674607142,5.24,95.443,95.371,0.25]
[1644674607340,0.25,95.442,95.371,0.25]
[1644674607540,5.24,95.445,95.371,0.25]
[1644674607744,0.25,95.444,95.371,0.25]
[1644674608746,15.7287,95.44,95.371,0.25]
[1644674609250,5.49,95.439,95.371,0.25]
[1644674611549,0.25,95.439,95.371,0.25]
[1644674612753,5.49,95.439,95.371,0.25]
[1644674614955,8.45762074,95.439,95.371,0.25]
[1644674615860,2.96762074,95.437,95.371,0.25]
[1644674616260,0.25,95.436,95.371,0.25]
[1644674617064,2.96762074,95.432,95.371,0.25]
[1644674617358,35.11904009,95.431,95.371,0.25]
[1644674617559,5.241,95.43,95.371,0.25]
[1644674617760,0.25,95.429,95.372,5.241]
[1644674618260,0.25,95.429,95.373,0.25]
[1644674618458,2.96762074,95.432,95.373,0.25]
[1644674618659,2.96762074,95.432,95.374,5.241]
[1644674618862,2.96762074,95.438,95.374,7.62466791]
[1644674619058,2.96762074,95.438,95.375,0.25]
[1644674619261,2.96762074,95.44,95.377,48.73311985]
[1644674619461,2.96762074,95.443,95.378,5.24]
[1644674619796,2.96762074,95.442,95.378,5.49]
[1644674619962,2.96762074,95.433,95.379,23.1626]
[1644674620164,2.96762074,95.432,95.379,23.1626]
[1644674620361,2.96762074,95.432,95.38,0.25]
[1644674620764,2.96762074,95.431,95.38,2.63366791]
[1644674620967,2.96762074,95.432,95.381,2.38366791]
[1644674621164,2.96762074,95.435,95.381,2.38366791]
[1644674621366,2.96762074,95.435,95.382,0.25]
[1644674621565,2.96762074,95.437,95.382,0.25]
[1644674621764,2.96762074,95.437,95.383,2.38366791]
[1644674621967,2.96762074,95.431,95.383,2.38366791]
[1644674622164,2.96762074,95.431,95.384,0.25]
[1644674622364,2.96762074,95.432,95.384,0.25]
[1644674622764,5.24,95.457,95.384,0.25]
[1644674622966,4.43987899,95.458,95.385,7.62266791]
[1644674623266,4.43987899,95.458,95.39,30.8621]
[1644674623465,4.43987899,95.467,95.391,5.239]
[1644674623664,4.43987899,95.467,95.392,61.41442875]
[1644674623966,4.43987899,95.467,95.393,5.239]
[1644674624166,4.43987899,95.467,95.393,7.87266791]
[1644674624564,39.08485922,95.466,95.394,2.38366791]
[1644674624764,4.43987899,95.464,95.395,0.25]
[1644674624967,5.239,95.463,95.395,0.25]
[1644674625164,5.489,95.463,95.395,0.25]
[1644674625364,5.239,95.463,95.395,0.25]
[1644674625767,5.239,95.463,95.396,2.38366791]
[1644674625966,4.43987899,95.464,95.4,15.7204]
[1644674626167,4.43987899,95.464,95.401,5.239]
[1644674626365,4.43987899,95.464,95.401,7.87266791]
[1644674626569,4.43987899,95.464,95.401,5.489]
[1644674626765,4.43987899,95.467,95.401,5.489]
[1644674626977,4.43987899,95.467,95.402,2.38366791]
[1644674627166,4.43987899,95.467,95.403,5.239]
[1644674627366,4.43987899,95.467,95.403,5.489]